Cogmind - Beta 15 @@@ ROGUE MODE // 2025.06.09 @ 22:27:58 Player: Skysub Result: Self-destructed Performance ------------- Evolutions (1) 500 Regions Visited (2) 400 Robots Destroyed (8) 40 Value Destroyed (100) 100 Prototype IDs (1) 20 Alien Tech Used (0) 0 Bonus (0) 0 TOTAL SCORE: 1060 Bonus ------- None Cogmind --------- Core Integrity 302/400 Matter 295/300 Energy 272/280 System Corruption 0% Temperature Cool (6) Movement Treading (160) Location -9/Materials Parts ------- > --- POWER (1) -------- Heavy Ion Engine > --- PROPULSION (2) --- Light Treads Light Treads > --- UTILITY (4) ------ Medium Storage Unit Improved Terrain Scanner Targeting Computer > --- WEAPON (2) ------- (None) > --- INVENTORY (10) --- Light Ion Engine Wheel Wheel Small Storage Unit Mining Laser Peak State ------------ > --- POWER ------------ Heavy Ion Engine > --- PROPULSION ------- Light Treads Light Treads > --- UTILITY ---------- Medium Storage Unit Improved Terrain Scanner Targeting Computer > --- WEAPON ----------- Medium Laser > --- INVENTORY -------- Light Ion Engine Light Treads Wheel Wheel Small Storage Unit Mining Laser [Rating: 11] Favorites ----------- Power Ion Engine Engine Ion Engine Propulsion Light Treads Treads Light Treads Utility Improved Terrain Scanner Device Improved Terrain Scanner Storage Medium Storage Unit Processor Targeting Computer Weapon Medium Laser Energy Gun Medium Laser Build | -11 -10 -9 ------- Run | Yrd Mat Mat Slots Evolved 2 | . . 2 Power . | . . . Propulsion . | . . . Utility 2 | . . 2 Weapon . | . . . Parts Attached 10 | 6 1 3 Power 2 | 1 . 1 Engine 2 | 1 . 1 Core . | . . . Reactor . | . . . Propulsion 3 | 2 . 1 Treads 3 | 2 . 1 Leg . | . . . Wheel . | . . . Hover . | . . . Flight . | . . . Utility 4 | 2 1 1 Device 1 | 1 . . Storage 2 | 1 1 . Processor 1 | . . 1 Hackware . | . . . Protection . | . . . Artifact . | . . . Weapon 1 | 1 . . Energy Gun 1 | 1 . . Energy Cannon . | . . . Ballistic Gun . | . . . Ballistic Cannon . | . . . Launcher . | . . . Special Weapon . | . . . Impact Weapon . | . . . Slashing Weapon . | . . . Piercing Weapon . | . . . Special Melee Weapon . | . . . Unidentified Prototypes 1 | . . 1 Parts Lost 2 | . . 2 Power . | . . . Propulsion 1 | . . 1 Utility . | . . . Weapon 1 | . . 1 Highest Loss Streak 2 | . . 2 To Critical Strikes 1 | . . 1 Average Backups 5 | 2 5 6 Power . | . 1 1 Propulsion 2 | 1 2 3 Utility . | . . 1 Weapon . | . 1 1 Tool/Special . | . . . Unused Backups 4 | . . 4 Power 1 | . . 1 Propulsion 2 | . . 2 Utility . | . . . Weapon 1 | . . 1 Tool/Special . | . . . Average Slot Usage (%) 79 | . 85 69 Engine 12 | . 14 11 Treads 25 | . 28 22 Device 12 | . 14 11 Storage 12 | . 14 11 Processor 1 | . . 5 Energy Gun 12 | . 14 9 Peak Build Rating 11 | 8 8 11 Average Rating 7 | 4 8 9 On Entrance 5 | . 8 8 Naked Turns . | . . . Heaviest Build 21 | 13 18 21 Greatest Support 40 | 40 40 40 Greatest Overweight (x) . | . . . Average Overweight (x) . | . . . Largest Inventory Capacity 10 | 8 10 10 Average Capacity 9 | 7 9 10 Most Carried 6 | 4 6 6 Average Carried 5 | 2 5 5 Final Capacity 10 | 8 10 10 Final Carried 6 | 4 6 5 Class Distribution -------------------- 100% | Mutant Dominant Class ---------------- Mutant | -10/Materials Mutant | -9/Materials Resources | -11 -10 -9 ----------- Run | Yrd Mat Mat Matter Collected 277 | 260 10 7 Remotely . | . . . Salvage Created 221 | 89 25 107 Parts 16 | 5 4 7 Haulers Intercepted . | . . . Recyclers Shooed 1 | . . 1 Parts Field Recycled . | . . . Retrieved Matter . | . . . Parts Self-Destructed . | . . . Prevented . | . . . Kills | -11 -10 -9 ------- Run | Yrd Mat Mat Combat Hostiles Destroyed 4 | . . 4 Guns 4 | . . 4 Classes Destroyed 5 | 2 1 2 Builder 2 | . 2 . Tunneler 1 | 1 . . Recycler 1 | 1 . . Swarmer 3 | . . 3 Grunt 1 | . . 1 Best Kill Streak 3 | 2 1 3 Combat Bots Only 3 | . . 3 Max Kills in Single Turn 1 | 1 1 1 Gunslinging . | . . . Exploded . | . . . Melee . | . . . Uniques/NPCs Destroyed . | . . . Combat | -11 -10 -9 -------- Run | Yrd Mat Mat Hostile Shots Fired 59 | . . 59 Missed 18 | . . 18 Hits 41 | . . 41 Projectile 41 | . . 41 Critical Strikes 3 | . . 3 Damage Taken 544 | . . 544 Core 98 | . . 98 Absorbed by Shields . | . . . Core Remaining (%) 100 | 100 100 . Volleys Fired 48 | 17 2 29 Largest 1 | 1 1 1 Hottest 50 | 50 50 50 Shots Fired 48 | 17 2 29 Gun 48 | 17 2 29 Cannon . | . . . Launcher . | . . . Special . | . . . Kinetic . | . . . Thermal 48 | 17 2 29 Explosive . | . . . Electromagnetic . | . . . Robot Hit Streak 15 | 5 4 15 Robot Miss Streak 3 | 3 . 2 Penetration Max . | . . . Secondary Targets . | . . . Shots Hit Robots 36 | 11 2 23 Core Hits 15 | 3 3 9 Critical Kills . | . . . Critical Parts Destroyed . | . . . Critical Strikes 1 | 1 . . Burn 1 | 1 . . Melee Attacks . | . . . Impact . | . . . Slashing . | . . . Piercing . | . . . Sneak Attacks . | . . . Combat Hostiles . | . . . Follow-up Attacks . | . . . Damage Inflicted 478 | 137 30 311 Guns 449 | 137 25 287 Cannons . | . . . Explosions . | . . . Melee . | . . . Ramming 29 | . 5 24 Kinetic . | . . . Thermal 449 | 137 25 287 Explosive . | . . . Electromagnetic . | . . . Impact . | . . . Slashing . | . . . Piercing . | . . . Highest Corruption . | . . . Average Corruption . | . . . Corruption Purged . | . . . Corruption Blocked . | . . . Overload Shots . | . . . Overflow Damage . | . . . Projectiles . | . . . Explosions . | . . . Melee . | . . . Knockbacks . | . . . Impact . | . . . Kinetic . | . . . Secondary . | . . . Self-Inflicted Damage . | . . . Shots . | . . . Rammed 17 | . 2 15 Targets Rammed 17 | . 2 15 Kicked . | . . . Crushed . | . . . Highest Temperature 204 | 140 10 204 Average Temperature 72 | 68 7 78 Received Heat Transfer 216 | . . 216 Siege Activations . | . . . Martial Activations . | . . . Shielding Activations . | . . . Robots Disrupted . | . . . Combat Hostiles . | . . . Robots Corrupted . | . . . Combat Hostiles . | . . . Parts Fried . | . . . Impact Corruptions . | . . . Robots Melted . | . . . Combat Hostiles . | . . . Parts Melted 4 | 1 . 3 Heat Transferred 1406 | 481 74 851 Parts Sabotaged . | . . . Parts Stolen . | . . . Parts Stripped . | . . . Power Chain Reactions . | . . . Alert | -11 -10 -9 ------- Run | Yrd Mat Mat Maximum Alert Level . | . . . Low Security (%) 100 | 100 100 100 Level 1 . | . . . Level 2 . | . . . Level 3 . | . . . Level 4 . | . . . Level 5 . | . . . High Security . | . . . Max Security . | . . . Peak Influence 64 | 10 9 64 Initial . | . . . Average 7 | . . 26 Influence Increases 142 | 10 14 118 Destroy 0b10 Robot/C 80 | . . 80 Destroy 0b10 Robot/NC 20 | 10 10 . Destroy Leader 20 | . . 20 Successful Hack 22 | . 4 18 Influence Decreases 142 | 10 14 118 Time Decay 124 | 10 14 100 Lost Part 18 | . . 18 Squads Dispatched . | . . . Investigation . | . . . Extermination . | . . . Reinforcement . | . . . Assault . | . . . Garrison . | . . . Intercept . | . . . Searches Triggered . | . . . Construction Impeded . | . . . Haulers Reinforced . | . . . Active Scanning Responses . | . . . Cargo Convoy Interrupts . | . . . Stealth | -11 -10 -9 --------- Run | Yrd Mat Mat Distress Signals 1 | . . 1 Communications Jammed . | . . . Distress Signals . | . . . Times Spotted 8 | . . 8 Peak Tracking Total 5 | . . 5 Tactical Retreats . | . . . Traps | -11 -10 -9 ------- Run | Yrd Mat Mat Traps Triggered . | . . . Indirectly . | . . . Trap Hack Attempts . | . . . Triggered . | . . . Disarmed 4 | . 4 . Reprogrammed . | . . . Reused . | . . . Traps Extracted . | . . . Installed . | . . . Triggered . | . . . Machines | -11 -10 -9 ---------- Run | Yrd Mat Mat Machines Disabled . | . . . Max in Single Turn . | . . . Machines Repaired . | . . . Machines Dismantled . | . . . Machines Sabotaged . | . . . Overloaded Fab Kills . | . . . Hacking | -11 -10 -9 --------- Run | Yrd Mat Mat Machines Accessed 9 | . 6 3 Terminals 8 | . 5 3 Fabricators . | . . . Repair Stations . | . . . Recycling Units 1 | . 1 . Scanalyzers . | . . . Garrison Access . | . . . Total Hacks 25 | . 19 6 Successful 11 | . 7 4 Failed 14 | . 12 2 Catastrophic 3 | . 3 . Database Lockouts . | . . . Manual 19 | . 14 5 Terminals 22 | . 16 6 Fabricators . | . . . Repair Stations . | . . . Recycling Units 3 | . 3 . Scanalyzers . | . . . Garrison Access . | . . . Terminal Hacks 3 | . 2 1 Branch Access Points 1 | . . 1 Disarm Traps 1 | . 1 . Zone Layout 1 | . 1 . Fabricator Hacks . | . . . Repair Station Hacks . | . . . Recycling Unit Hacks 1 | . 1 . Report Inventory 1 | . 1 . Scanalyzer . | . . . Garrison Access Hacks . | . . . Unauthorized Hacks 7 | . 4 3 Terminals 6 | . 3 3 Botnet 6 | . 3 3 Fabricators . | . . . Repair Stations . | . . . Recycling Units 1 | . 1 . Reject 1 | . 1 . Scanalyzers . | . . . Garrison Access . | . . . Data Cores Recovered . | . . . Used . | . . . Hacking Detections 8 | . 6 2 Full Trace Events 3 | . 3 . Feedback Events . | . . . Feedback Blocked . | . . . Robot Schematics Acquired . | . . . Robots Built . | . . . Authchips . | . . . Time . | . . . Total Robot Build Rating . | . . . Part Schematics Acquired . | . . . Parts Built . | . . . Authchips . | . . . Time . | . . . Total Part Build Rating . | . . . Parts Repaired . | . . . Time . | . . . Parts Recycled . | . . . Recycled Matter . | . . . Retrieved Matter . | . . . Retrieved Components . | . . . Parts Scanalyzed . | . . . Part Schematics Acquired . | . . . Parts Damaged . | . . . Bothacking | -11 -10 -9 ------------ Run | Yrd Mat Mat Used RIF Installer . | . . . Robots Hacked . | . . . Non-combat . | . . . Combat . | . . . Robot Hacks Applied . | . . . Relay Couplers Released . | . . . Fabnet Peak Effective % . | . . . Robots Rewired . | . . . Allies Hacked . | . . . Hacks Repelled . | . . . Allies | -11 -10 -9 -------- Run | Yrd Mat Mat Total Allies . | . . . Largest Group . | . . . Highest-Rated Group . | . . . Highest-Rated Ally . | . . . Total Orders . | . . . Ally Attacks . | . . . Total Damage . | . . . Kills . | . . . Allies Corrupted . | . . . Allies Melted . | . . . Intel | -11 -10 -9 ------- Run | Yrd Mat Mat Active Infowar (turns) 681 | 17 442 222 Terrain 681 | 17 442 222 Robot Analysis Total . | . . . Derelict Logs Recovered . | . . . Drone Launches . | . . . Drone Recoveries . | . . . Exploration | -11 -10 -9 ------------- Run | Yrd Mat Mat Turns Passed 783 | 119 442 222 Spaces Moved 332 | 48 199 85 Core 4 | 4 . . Treads 328 | 44 199 85 Legs . | . . . Wheels . | . . . Hover . | . . . Flight . | . . . Fastest Speed 50 | 50 160 160 Average Speed 158 | 150 160 160 Slowest Speed 160 | 160 160 160 Overloaded Moves . | . . . Propulsion Burnouts . | . . . Robots Hopped . | . . . Potential Cave-ins . | . . . Cave-ins Triggered . | . . . Exploration Rate (%) 17 | 6 30 15 Regions Visited 2 Branch Regions . Pre-discovered Areas . | . . . Known Exits Taken . | . . . Unknown Exits Taken 2 | 1 1 . Scrap Searched . | . . . Spaces Dug . | . . . Terrain Destroyed . | . . . Melee . | . . . Projectile . | . . . AOE . | . . . Terrain Rammed . | . . . Walls Destroyed . | . . . Machines Disabled . | . . . Actions | -11 -10 -9 --------- Run | Yrd Mat Mat Total 526 | 75 319 132 Wait 115 | . 115 . Move 330 | 47 198 85 Hop . | . . . Pick Up 6 | 5 1 . Fast Attach 6 | 5 . 1 Attach 2 | 1 . 1 Detach . | . . . Swap 2 | . 1 1 Drop . | . . . Fire 48 | 17 2 29 Melee . | . . . Ram . | . . . Kick . | . . . Crush 17 | . 2 15 Escape Stasis . | . . . Rewire . | . . . Trap . | . . . Miscellaneous . | . . . Route ------- -11/Scrapyard -10/Materials -9/Materials (discovered 1 exit: Min) History --------- Turn | Location | Event 30 | -11/Scrapyard | Discovered new exit (range 14) 120 | -11/Scrapyard | Entered Materials 266 | -10/Materials | Discovered new exit (range 14) 313 | -10/Materials | Build established: Mutant 562 | -10/Materials | Entered another Materials area 562 | -9/Materials | Evolved 2 slots: Utility x2 662 | -9/Materials | Identified exit to Mines 784 | -9/Materials | Self-destructed Last Messages --------------- Med. Laser destroyed. Slammed into Y-45 Defender. Y-45 Defender heat damages Lgt. Armor Plating, Heat Sink. Y-45 Defender heat short circuits Heat Sink. Slammed into G-34 Mercenary. Material Compactor disabled. Slammed into G-34 Mercenary. M-13 Machinist repairs Y-45 Defender. Y-45 Defender heat damages Hvy. Assault Rifle. Slammed into G-34 Mercenary. M-13 Machinist repairs Y-45 Defender Lgt. Armor Plating. Slammed into G-34 Mercenary. Critical hit (Burn: +37). M-13 Machinist repairs Y-45 Defender Hvy. Assault Rifle. Slammed into G-34 Mercenary. Y-45 Defender heat spikes uncontrollably. Slammed into G-34 Mercenary. Critical hit (Destroy). Lgt. Treads destroyed. Acquired 5 matter. Map ----- +----------------------------------------------------+ | ??????????????????????????????????????????????#### | | ???????????????????????????????????????????#?? | | ?????????????????????????????????????????#??? | | ??????????????????????????????#??????????#???""" " | | ?????????????????????????????????#???????#?# """ " | | ?????????????????????????????????# ????????# """ " | | ?????????????????????????????????#+######### | | ?????????????????????????????????# # % | | ?????????????????????????????????# #####/# | | ?????????????????????????????##??# ## % | | ????????????????????????????## # ## | | ?????????????????????????????? / ## == | | ?????????????????????????????? ?# ##=== | | ??????????????????? ??????#???# ?# ##== | | ?????????????????????????#????# ?# ## | | ??????????????????????????????# #########/### | | ??????????????????????????????# | | ??????????????????#???????????# | | ???????????????????????#????#?# | | ???????????????????????######## """ """ "" | | ???????????????????????# # """"" """"" """ | | ???????????????????????# "T" # """"" """"" """ | | ???????????????????????+ + """ " """"" """ | | ????????????????? ? ???# # " " """ "" | | ???????????????????????# g * #% | | ?????????????????? ????# @%%%%/Y%% | | ???????????????????????#########m#######""T""##### | | ???????????????????????????# % #?#"""""#?## | | ???????????????????????????# #?#######??# | | ??????????????????????????## """ #????#?????# | | ???????????????????????????# """ #??????????# | | ???????????????????????? ??# "" """ ##?????????# | | ???????????????????????????# "T #??#???????# | | ???????????????????????????# "" #????????#?# | | ???????????????????????????# #??????????# | | ???????????????????????????#########?#??#???????#? | | ????????????????????????????????????##???????????? | | ????????????????????????????????????????????#????? | | ????????????????????????????????????????#??#???#?? | | ???????????????????????#??????#??????????????????? | | | | | | | | | | | | | | | | | | | | | +----------------------------------------------------+ Best States ------------- Heat Dissipation 28 Energy Generation 14 Energy Capacity 280 Matter Stores 300 Matter Capacity 300 Sight Range 16 Terrain Scan Range 16 Terrain Scan Density 10 Evasion (%) 40 Targeting Accuracy 5 Recoil Reduction 2 Item Schematics ----------------- None Robot Schematics ------------------ None Fabricated ------------ Nothing Repaired ---------- Nothing Alien Tech Used ----------------- None Achievements -------------- None Challenges ------------ None Game ------ Seed OmegaTacticalCore Manual? 0 Play Time 00:07:35 Cumulative 121.8 hours Start 2025.06.09 @ 22:18:56 End 2025.06.09 @ 22:27:58 Sessions 2 Manual Loads 0 Difficulty Rogue Special Mode None Game No. 124 Rogue 124 Adventurer 0 Explorer 0 Win Type - Total 2 Types 1/0/0/1/0/0/0/0/0/0 Lore% 60 Gallery% 56 Achievement% 51 Wizard Run 0 Options --------- Layout 1 ASCII 0 Keyboard 1 Movement Numpad Keybinds 0 Fullscreen 1 Font 32/SmallcapsGlow Map View 77x35 Zoom Use 0% Tactical HUD 0 Map Filters NONE Filters NONE Steam 1 RUN: b285000b-f5cd-44c4-9afa-d0c12d3e0459